fUSD/lending_fUSD_20260103
["ID","MTS","AMOUNT","RATE_DAILY","PERIOD"]
[400348099,1767407556538,-25000.0,0.00030882,2]
[400348100,1767407556738,151.0,0.00028585,2]
[400348101,1767407557711,-25000.0,0.00030882,2]
[400348102,1767407572975,151.0,0.00028571,2]
[400348103,1767407589156,151.0,0.00028563,2]
[400348118,1767407605356,151.0,0.00028552,2]
[400348120,1767407621521,151.0,0.00028542,2]
[400348121,1767407644232,508.0,0.00029877,2]
[400348127,1767407702103,151.0,0.00028666,2]
[400348128,1767407718441,151.0,0.00028724,2]
[400348129,1767407735086,151.0,0.00028724,2]
[400348134,1767407751284,151.0,0.00028724,2]
[400348136,1767407767945,151.0,0.00028721,2]
[400348137,1767407768591,160.0,0.000305,2]
[400348138,1767407784279,151.0,0.00028721,2]
[400348139,1767407800324,151.0,0.00028721,2]
[400348215,1767407816481,151.0,0.00028721,2]
[400348249,1767407880216,151.0,0.00028701,2]
[400348265,1767407922928,166.66,0.00030229,30]
[400348273,1767407950747,788.44,0.00015872,2]
[400348274,1767407950948,788.44,0.00016708,2]
[400348275,1767407951155,788.44,0.00017543,2]
[400348276,1767407951358,788.44,0.00018379,2]
[400348277,1767407951554,788.44,0.00019214,2]
[400348278,1767407951862,788.44,0.00020049,2]
[400348279,1767407952071,788.44,0.00020885,2]
[400348280,1767407952282,788.44,0.0002172,2]
[400348281,1767407952489,788.44,0.00022556,2]
[400348282,1767407952698,788.44,0.00023391,2]
[400348283,1767407952994,788.44,0.00024226,2]
[400348284,1767407953104,788.44,0.00025062,2]
[400348285,1767407953307,788.44,0.00025897,2]
[400348286,1767407953804,788.44,0.00026733,2]
[400348287,1767407953836,788.44,0.00027568,2]
[400348288,1767407954037,788.44,0.00028403,2]
[400348289,1767407954242,788.44,0.00029239,2]
[400348290,1767407954474,788.44,0.00030074,2]
[400348295,1767407992431,151.0,0.00028439,2]
[400348296,1767408003839,508.0,0.00029877,2]
[400348300,1767408009559,151.0,0.00028518,2]
[400348310,1767408025783,151.0,0.00028552,2]
[400348311,1767408042006,228.39,0.00028552,2]
[400348340,1767408106032,300.0,0.000305,2]
[400348341,1767408107224,300.0,0.000305,2]
[400348342,1767408108861,300.0,0.000305,2]
[400348343,1767408110184,300.0,0.000305,2]
[400348344,1767408111503,300.0,0.000305,2]
[400348345,1767408112924,300.0,0.000305,2]
[400348346,1767408114263,300.0,0.000305,2]
[400348347,1767408115606,300.0,0.000305,2]
[400348348,1767408116908,300.0,0.000305,2]
[400348349,1767408118276,300.0,0.000305,2]
[400348350,1767408119613,300.0,0.000305,2]
[400348351,1767408120947,300.0,0.000305,2]
[400348352,1767408122289,303.10356194,0.000305,2]
[400348408,1767408363833,508.0,0.00029877,2]
[400348413,1767408373964,177.94,0.00030427,120]
[400348441,1767408460015,163.87,0.00027784,2]
[400348454,1767408501307,222.0,0.000305,2]
[400348465,1767408572150,-241.02,0.00030509,3]
[400348466,1767408572173,-189.80270989,0.00030509,2]
[400348467,1767408572197,-198.03710231,0.00030572,2]
[400348468,1767408572220,-997.25012263,0.00030672,2]
[400348479,1767408631328,-166.43677047,0.00030573,2]
[400348480,1767408631340,-152.76930132,0.00030582,3]
[400348481,1767408631350,-5847.22578725,0.00030672,2]
[400348482,1767408631360,-4730.9301504,0.00030672,2]
[400348483,1767408631371,-189.80270989,0.00030672,2]
[400348484,1767408631380,-67889.82520495,0.00030672,3]
[400348485,1767408631393,-1959.58192403,0.00030672,3]
[400348486,1767408631405,-4575.20272206,0.00030672,3]
[400348487,1767408631422,-300.0,0.00030672,3]
[400348488,1767408631484,-677.36324147,0.00030672,3]
[400348489,1767408631497,-6091.47474541,0.00030672,3]
[400348510,1767408638579,-152.7693013,0.00030628,3]
[400348511,1767408638590,-1200.206836,0.00030672,3]
[400348539,1767408639483,-32308.58807408,0.00030672,3]
[400348540,1767408639494,-203204.26284,0.00030672,3]
[400348541,1767408639503,-192.56109622,0.00030672,2]
[400348542,1767408639514,-151.44,0.00030672,2]
[400348543,1767408639524,-443797.87489101,0.00030682,2]
[400348544,1767408639535,-12192.65697063,0.00030682,2]
[400348545,1767408639799,-800.00025,0.00030682,2]
[400348546,1767408639811,-800.0001,0.00030682,2]
[400348557,1767408645395,-1989.27419666,0.00030573,2]
[400348561,1767408666895,195.0,0.00030623,120]
[400348562,1767408666987,195.0,0.00030692,120]
[400348563,1767408693176,712.359,0.00030069,25]
[400348564,1767408704883,2004.0,0.0003287,120]
[400348565,1767408722921,2000.0,0.0003287,120]
[400348566,1767408723937,508.0,0.00029877,2]
[400348567,1767408724398,195.0,0.00030577,120]
[400348568,1767408732514,248.64438098,0.00018385,2]
[400348569,1767408759203,151.0,0.00028648,2]
[400348570,1767408767782,102.05305708,0.00028648,2]
[400348571,1767408767809,48.94694292,0.00028648,2]
[400348572,1767408844051,1000.0,0.0003,20]
[400348573,1767408866266,1512.0,0.000285,15]
[400348574,1767408983789,-300.0,0.00030572,2]
[400348575,1767408983817,-24700.0,0.00030573,2]
[400348576,1767408984993,-10189.90570334,0.00030573,2]
[400348577,1767408985019,-2589.1163,0.00030573,2]
[400348578,1767408985046,-236.2929,0.00030573,2]
[400348579,1767408985072,-1000.0,0.00030573,2]
[400348580,1767408985112,-6620.61072522,0.00030582,2]
[400348581,1767408985143,-4364.07437144,0.00030582,2]
[400348582,1767408985755,-1351.31902241,0.00030582,2]
[400348583,1767408985780,-2500.0,0.00030582,2]
[400348584,1767408985806,-300.0,0.00030659,2]
[400348585,1767408985831,-300.0,0.00030668,2]
[400348586,1767408985858,-20548.68097759,0.00030672,3]
[400348587,1767408986497,-25000.0,0.00030672,3]
[400348588,1767408986640,-25000.0,0.00030672,3]
[400348589,1767408987046,-25000.0,0.00030672,3]
[400348590,1767408987524,-25000.0,0.00030672,3]
[400348591,1767408988006,-13544.82110041,0.00030672,3]
[400348592,1767408988032,-300.0,0.00030679,2]
[400348593,1767408988063,-11155.17889959,0.00030682,2]
[400348594,1767408988355,-25000.0,0.00030682,2]
[400348595,1767408988931,-25000.0,0.00030682,2]
[400348596,1767408989443,-25000.0,0.00030682,2]
[400348597,1767408989932,-25000.0,0.00030682,2]
[400348598,1767408990539,-25000.0,0.00030682,2]
[400348599,1767408990912,-25000.0,0.00030682,2]
[400348600,1767408991399,-25000.0,0.00030682,2]
[400348601,1767408992786,-25000.0,0.00030682,2]
[400348602,1767408998629,521.19,0.00029954,2]
[400348603,1767408999142,-1062.96840892,0.00030681,15]
[400348604,1767408999176,-23937.03159108,0.00030682,2]
[400348605,1767408999834,-25000.0,0.00030682,2]
[400348606,1767409000304,-25000.0,0.00030682,2]
[400348607,1767409000906,-25000.0,0.00030682,2]
[400348608,1767409067402,1155.94,0.00029915,120]
[400348609,1767409083821,508.0,0.00029877,2]
[400348610,1767409085023,257.06,0.00029929,30]
[400348611,1767409097172,340.5,0.00032877,120]
[400348612,1767409209437,1000.0,0.000296,2]
[400348613,1767409236526,500.0,0.00029963,20]
[400348614,1767409246801,1000.0,0.00029963,2]
[400348615,1767409443910,508.0,0.00029877,2]
[400348616,1767409587509,160.0,0.0003,2]
[400348617,1767409667999,151.0,0.0003,2]
[400348619,1767409700316,151.0,0.0003,5]
[400348620,1767409714227,151.0,0.0003,2]
[400348621,1767409722943,872.67,0.00029871,2]
[400348622,1767409804095,508.0,0.00029877,2]
[400348625,1767409831475,-454.0,0.00030008,2]
[400348626,1767409831486,-150.0,0.00030008,2]
[400348627,1767409831497,-265.36,0.00030058,2]
[400348628,1767409831507,-3178.52497712,0.00030441,2]
[400348629,1767409831518,-316.95603587,0.00030523,2]
[400348630,1767409831528,-300.0,0.00030551,2]
[400348631,1767409831539,-257.0,0.00030581,2]
[400348632,1767409831549,-400.0,0.00030581,2]
[400348633,1767409831560,-1749.37061199,0.00030582,2]
[400348634,1767409831577,-4043.4450543,0.00030582,2]
[400348635,1767409831588,-33545.9207,0.00030582,2]
[400348636,1767409831598,-1000.0,0.00030582,2]
[400348637,1767409831609,-300.0,0.00030599,2]
[400348638,1767409831619,-300.0,0.00030633,2]
[400348639,1767409831630,-500.0,0.00030673,2]
[400348640,1767409831640,-151.09986182,0.00030673,2]
[400348641,1767409831651,-500.0,0.00030673,2]
[400348642,1767409831661,-500.0,0.00030673,2]
[400348643,1767409831672,-500.0,0.00030673,2]
[400348644,1767409831682,-500.0,0.00030673,2]
[400348645,1767409831692,-500.0,0.00030673,2]
[400348646,1767409831702,-3126.6704773,0.00030674,2]
[400348647,1767409831712,-200839.1449558,0.00030674,2]
[400348648,1767409831723,-292.40927991,0.00030682,2]
[400348649,1767409831733,-300.0,0.00030748,2]
[400348650,1767409831744,-300.0,0.00030751,2]
[400348652,1767409831755,-166.66,0.00030767,2]
[400348653,1767409831765,-150.99,0.00030772,2]
[400348654,1767409831776,-2001.26818567,0.00030772,2]
[400348655,1767409831786,-9999.99,0.00030772,2]
[400348656,1767409831796,-1307.49,0.00030772,2]
[400348658,1767409831806,-1271.61,0.00030772,2]
[400348659,1767409831816,-4491.15,0.00030772,2]
[400348660,1767409831827,-3344.95,0.00030772,10]
[400348661,1767409831837,-1905.6738841,0.00030796,2]
[400348662,1767409831847,-11653.9776102,0.00030796,2]
[400348663,1767409831857,-166.66,0.00030865,30]
[400348664,1767409831867,-14722.8404913,0.00030905,3]
[400348665,1767409831877,-788.44,0.0003091,2]
[400348666,1767409831887,-350.47,0.00030914,14]
[400348667,1767409831896,-193.59951911,0.00030923,2]
[400348668,1767409831906,-252.21239896,0.00030923,2]
[400348669,1767409831918,-209.91190666,0.00030923,2]
[400348670,1767409831928,-208.93630464,0.00030923,2]
[400348671,1767409831939,-572.66195837,0.0003097,2]
[400348672,1767409831952,-310.0,0.00031,2]
[400348673,1767409831962,-508.60874789,0.00031082,2]
[400348674,1767409831973,-500.0,0.00031082,30]
[400348675,1767409831983,-500.0,0.00031082,30]
[400348676,1767409831994,-3680.71012283,0.00031082,3]
[400348677,1767409832004,-153.4642273,0.00031083,3]
[400348678,1767409832014,-500.0,0.00031092,30]
[400348679,1767409832024,-500.0,0.00031092,30]
[400348680,1767409832034,-508.04103286,0.00031092,30]
[400348681,1767409832044,-1111.23385628,0.00031092,15]
[400348682,1767409832054,-350.47,0.00031188,14]
[400348683,1767409832065,-150.0,0.00031189,2]
[400348684,1767409832075,-210.20416775,0.00031189,2]
[400348685,1767409832084,-500.0,0.00031189,2]
[400348686,1767409832095,-167.43181631,0.00031189,2]
[400348687,1767409832105,-150.0,0.00031189,2]
[400348688,1767409832115,-152.12123138,0.00031189,2]
[400348689,1767409832125,-150.26122987,0.00031189,2]
[400348690,1767409832135,-3680.71012283,0.00031282,3]
[400348691,1767409832149,-511.67545241,0.00031292,30]
[400348692,1767409832159,-257.40464583,0.00031326,2]
[400348693,1767409832169,-500.0,0.00031326,2]
[400348694,1767409832179,-259.86544597,0.00031326,2]
[400348695,1767409832190,-303.91,0.00031339,3]
[400348696,1767409832200,-200.0,0.00031455,2]
[400348697,1767409832211,-350.47,0.00031462,14]
[400348698,1767409832221,-521.96269266,0.00031463,2]
[400348699,1767409832231,-150.0,0.00031471,2]
[400348700,1767409832241,-150.0,0.00031471,2]
[400348701,1767409832252,-166.66,0.00031501,30]
[400348702,1767409832262,-320.1,0.00031531,2]
[400348703,1767409832272,-3680.71012283,0.00031531,3]
[400348704,1767409832283,-1000.0,0.00031541,2]
[400348705,1767409832293,-2000.0,0.000316,2]
[400348706,1767409832303,-249.62704522,0.00031608,2]
[400348707,1767409832313,-170.55413539,0.00031608,2]
[400348708,1767409832323,-3680.71012283,0.00031735,3]
[400348709,1767409832333,-350.47,0.00031736,14]
[400348710,1767409832343,-788.44,0.00031745,2]
[400348711,1767409832357,-347.36,0.0003182,2]
[400348712,1767409832368,-5792.81566624,0.00031956,2]
[400348713,1767409832378,-350.48111799,0.0003201,14]
[400348714,1767409832388,-166.66,0.00032037,2]
[400348715,1767409832399,-166.66,0.00032138,30]
[400348716,1767409832409,-508.0,0.00032155,4]
[400348717,1767409832419,-500.0,0.0003216,2]
[400348718,1767409832429,-890.47006502,0.000323,2]
[400348719,1767409832439,-7361.42024566,0.0003266,3]
[400348720,1767409832450,-5000.0,0.0003267,2]
[400348721,1767409832460,-166.66,0.00032774,30]
[400348722,1767409832471,-3680.71012283,0.0003279,3]
[400348723,1767409832481,-4809.60301517,0.000328,2]
[400348724,1767409832491,-200.0,0.0003287,2]
[400348725,1767409832501,-151.0,0.00032876,5]
[400348726,1767409832512,-200.0,0.00032877,2]
[400348727,1767409832522,-200.0,0.00032877,2]
[400348728,1767409832533,-515.0,0.00032877,120]
[400348729,1767409832543,-200.0,0.00032877,2]
[400348730,1767409832555,-474.0720829,0.000329,2]
[400348731,1767409832565,-7361.42024566,0.0003299,3]
[400348732,1767409832575,-4000.0,0.00033,3]
[400348733,1767409832585,-1908.16651507,0.00033,2]
[400348734,1767409832596,-152.92287326,0.00033,2]
[400348735,1767409832606,-151.0,0.00033,7]
[400348736,1767409832616,-195.0,0.00033009,120]
[400348737,1767409832626,-500.0,0.00033012,2]
[400348738,1767409832637,-249.22,0.00033034,2]
[400348739,1767409832647,-269.67,0.00033165,2]
[400348740,1767409832657,-3680.71012283,0.00033189,3]
[400348741,1767409832667,-200.0,0.00033199,2]
[400348742,1767409832677,-200.0,0.00033206,2]
[400348743,1767409832687,-200.0,0.00033206,2]
[400348744,1767409832696,-1000.0,0.000333,2]
[400348745,1767409832706,-166.66,0.00033306,2]
[400348746,1767409832717,-5792.81566624,0.00033329,2]
[400348747,1767409832727,-166.66,0.0003341,30]
[400348748,1767409832737,-1206.42725346,0.000335,2]
[400348749,1767409832747,-200.0,0.00033531,2]
[400348750,1767409832757,-200.0,0.00033538,2]
[400348751,1767409832768,-3680.71012283,0.00033699,3]
[400348752,1767409832778,-1000.0,0.00033709,2]
[400348753,1767409832788,-3126.6704773,0.00033778,2]
[400348754,1767409832799,-3680.71012283,0.00033856,3]
[400348755,1767409832809,-200.0,0.00033866,2]
[400348756,1767409832818,-200.0,0.00033873,2]
[400348757,1767409832828,-325.77987806,0.00034,2]
[400348758,1767409832838,-215.82,0.0003408,2]
[400348759,1767409832848,-200.0,0.00034205,2]
[400348760,1767409832859,-177.94,0.0003423,120]
[400348761,1767409832868,-257.06,0.00034255,30]
[400348762,1767409832879,-508.0,0.00034433,7]
[400348763,1767409832889,-3680.71012283,0.0003448,3]
[400348764,1767409832899,-1724.54588321,0.0003449,2]
[400348765,1767409832909,-166.66,0.00034576,2]
[400348766,1767409832924,-163.87,0.00034633,2]
[400348767,1767409832934,-5792.81566624,0.00034703,2]
[400348768,1767409832944,-2500.0,0.00034731,2]
[400348769,1767409832955,-2600.3538905,0.00034831,2]
[400348770,1767409832976,-422.50817868,0.0003496,2]
[400348771,1767409832988,-3680.71012283,0.00034977,3]
[400348772,1767409832999,-200.0,0.00034987,2]
[400348773,1767409833009,-207.4,0.00034987,2]
[400348774,1767409833019,-215.0738,0.00034987,2]
[400348775,1767409833030,-223.0315306,0.00034987,2]
[400348776,1767409833040,-231.28369723,0.00034987,2]
[400348777,1767409833051,-239.84119403,0.00034987,2]
[400348778,1767409833061,-248.71531821,0.00034987,2]
[400348779,1767409833071,-257.91778498,0.00034987,2]
[400348780,1767409833082,-267.46074303,0.00034987,2]
[400348781,1767409833092,-277.35679052,0.00034987,2]
[400348782,1767409833102,-3680.71012283,0.0003499,3]
[400348783,1767409833112,-461.20550043,0.00035,60]
[400348784,1767409833122,-1910.03237022,0.00035,2]
[400348785,1767409833132,-151.0,0.00035,7]
[400348786,1767409833142,-201.10958208,0.00035005,7]
[400348787,1767409833152,-155.58546639,0.00035005,7]
[400348788,1767409833162,-170.41110007,0.00035049,2]
[400348789,1767409833172,-166.7,0.00035172,2]
[400348790,1767409833182,-276.0884,0.0003522,30]
[400348791,1767409833192,-164.75269491,0.00035297,41]
[400348792,1767409833202,-799.624,0.00035297,41]
[400348793,1767409833212,-1003.0,0.000353,2]
[400348794,1767409833222,-160.83,0.00035405,2]
[400348795,1767409833232,-7361.42024566,0.00035586,3]
[400348796,1767409833242,-1610.49006338,0.00035596,5]
[400348797,1767409833258,-2858.50993662,0.00035596,5]
[400348798,1767409833268,-3278.52,0.00035596,2]
[400348799,1767409833279,-3680.71012283,0.00035606,3]
[400348800,1767409833289,-210.52822888,0.00035616,32]
[400348801,1767409833299,-580.21738,0.00035731,2]
[400348802,1767409833309,-166.66,0.00035845,2]
[400348803,1767409833324,-3680.71012283,0.00035991,3]
[400348804,1767409833334,-477.7224711,0.00035996,3]
[400348805,1767409833346,-391.2107439,0.00035996,3]
[400348806,1767409833359,-1905.14323361,0.00035996,3]
[400348807,1767409833371,-1335.80895032,0.00035996,3]
[400348808,1767409833383,-2574.61479754,0.00035996,3]
[400348809,1767409833396,-676.92004919,0.00035996,3]
[400348810,1767409833406,-278.81025492,0.00036,2]
[400348811,1767409833416,-218.0,0.00036,30]
[400348812,1767409833426,-76.64839603,0.00036001,2]
[400348813,1767409833439,-3987.86710155,0.00036001,2]
[400348814,1767409833452,-935.48450242,0.00036001,2]
[400348815,1767409833462,-130.77159266,0.00036006,2]
[400348816,1767409833474,-4869.22840734,0.00036006,2]
[400348817,1767409833485,-2358.52410152,0.00036065,2]
[400348818,1767409833497,-143.13589848,0.00036065,2]
[400348819,1767409833508,-1998.13740097,0.00036077,2]
[400348820,1767409833520,-745.06711327,0.00036077,2]
[400348836,1767409837588,-2640.70953548,0.00036077,2]
[400348837,1767409837601,-408.90161652,0.00036077,2]
[400348838,1767409837612,-218.0,0.00036192,30]
[400348839,1767409837623,-499.46273687,0.00036251,3]
[400348840,1767409837635,-661.68,0.00036251,3]
[400348841,1767409837648,-500.0,0.00036251,3]
[400348842,1767409837661,-4224.61971556,0.00036251,3]
[400348843,1767409837673,-1446.62639381,0.00036251,3]
[400348844,1767409837685,-29.03139942,0.00036251,3]
[400348845,1767409837695,-4908.7319859,0.00036261,2]
[400348846,1767409837708,-91.2680141,0.00036261,2]
[400348847,1767409837720,-559.70892886,0.00036287,3]
[400348880,1767409839583,-1727.05004987,0.00036287,3]
[400348883,1767409839635,-640.27768731,0.00036287,3]
[400348884,1767409839648,-753.67345679,0.00036287,3]
[400348885,1767409839658,-3653.11,0.00036297,2]
[400348886,1767409839667,-44168.521474,0.00036335,4]
[400348887,1767409839677,-44813.270578,0.00036345,2]
[400348888,1767409839687,-1674.62,0.00036349,2]
[400348889,1767409839696,-298.41793724,0.00036356,2]
[400348890,1767409839706,-1250.55,0.00036357,2]
[400348891,1767409839717,-7361.42024566,0.00036367,4]
[400348892,1767409839726,-5000.0,0.00036377,2]
[400348893,1767409839736,-3680.71012283,0.00036518,4]
[400348894,1767409839746,-5000.0,0.00036528,2]
[400348895,1767409839756,-732.24,0.00036588,2]
[400348896,1767409839766,-508.0,0.00036712,9]
[400348897,1767409839776,-160.83,0.00036775,2]
[400348898,1767409839786,-3680.71012283,0.00036789,4]
[400348899,1767409839796,-180.8190478,0.000368,2]
[400348900,1767409839806,-7361.42024566,0.00036821,4]
[400348901,1767409839816,-2558.75,0.00036826,2]
[400348902,1767409839827,-4496.26,0.00036831,2]
[400348903,1767409839836,-3680.71012283,0.00036841,4]
[400348904,1767409839846,-5000.0,0.00036851,2]
[400348905,1767409839857,-3680.71012283,0.00036873,4]
[400348906,1767409839867,-3126.6704773,0.00036883,2]
[400348907,1767409839877,-662.68,0.00036892,2]
[400348908,1767409839886,-3680.71012283,0.00036933,4]
[400348909,1767409839896,-2501.66,0.00036943,2]
[400348910,1767409839907,-155.158769,0.00037113,14]
[400348911,1767409839920,-187.43891347,0.000372,120]
[400348912,1767409839930,-11849.56857893,0.00037284,2]
[400348913,1767409839940,-151.0,0.00037284,31]
[400348914,1767409839950,-182.112036,0.00037284,31]
[400348915,1767409839960,-5792.81566624,0.0003745,2]
[400348916,1767409839970,-1000.0,0.00037454,2]
[400348917,1767409839979,-9999.1922408,0.00037611,2]
[400348918,1767409839989,-218.0,0.00037714,30]
[400348919,1767409840002,-3471.882,0.00037951,2]
[400348920,1767409840012,-1360.655,0.00037951,2]
[400348921,1767409840022,-433.0,0.00037987,2]
[400348922,1767409840032,-1265.0,0.00037987,2]
[400348923,1767409840042,-2434.0,0.00037991,2]
[400348924,1767409840051,-4814.0,0.00037991,2]
[400348926,1767409840061,-566.783,0.00037991,2]
[400348927,1767409840071,-177.94,0.00038033,120]
[400348928,1767409840081,-151.0,0.00038356,10]
[400348929,1767409840090,-151.0,0.00038356,10]
[400348930,1767409840100,-151.0,0.00038356,10]
[400348931,1767409840110,-151.0,0.00038356,120]
[400348932,1767409840120,-151.0,0.00038356,120]
[400348933,1767409840130,-243.89157,0.00038356,120]
[400348934,1767409840141,-155.846345,0.00038356,120]
[400348935,1767409840151,-249.243377,0.00038356,120]
[400348936,1767409840161,-180.194047,0.00038356,120]
[400348937,1767409840171,-151.0,0.000385,14]
[400348938,1767409840181,-170.654,0.000385,14]
[400348939,1767409840191,-257.06,0.00038581,120]
[400348940,1767409840201,-343.42531094,0.00038738,2]
[400348941,1767409840211,-303.88896894,0.00038738,2]
[400348942,1767409840221,-300.0,0.00038738,2]
[400348943,1767409840230,-300.0,0.00038738,2]
[400348944,1767409840240,-303.51349633,0.00038738,2]
[400348945,1767409840250,-578.10034199,0.00038738,2]
[400348946,1767409840260,-616.00617618,0.00038738,2]
[400348947,1767409840269,-304.68719061,0.00038738,2]
[400348948,1767409840279,-383.44466145,0.00038738,2]
[400348949,1767409840288,-303.88896894,0.00038738,2]
[400348950,1767409840297,-300.0,0.00038738,2]
[400348951,1767409840307,-537.86571605,0.00038738,2]
[400348952,1767409840316,-303.51349633,0.00038738,2]
[400348953,1767409840326,-578.10034199,0.00038738,2]
[400348954,1767409840335,-616.00617618,0.00038738,2]
[400348955,1767409840345,-304.68719061,0.00038738,2]
[400348956,1767409840355,-303.88896894,0.00038738,2]
[400348957,1767409840364,-300.0,0.00038738,2]
[400348958,1767409840374,-303.51349633,0.00038738,2]
[400348959,1767409840384,-578.10034199,0.00038738,2]
[400348960,1767409840394,-616.00617618,0.00038738,2]
[400348961,1767409840404,-304.68719061,0.00038738,2]
[400348962,1767409840414,-303.88896894,0.00038738,2]
[400348963,1767409840424,-300.0,0.00038738,2]
[400348964,1767409840434,-303.51349633,0.00038738,2]
[400348965,1767409840443,-578.10034199,0.00038738,2]
[400348966,1767409840453,-616.00617618,0.00038738,2]
[400348967,1767409840463,-304.68719061,0.00038738,2]
[400348968,1767409840473,-303.88896894,0.00038738,2]
[400348969,1767409840483,-300.0,0.00038738,2]
[400348970,1767409840493,-303.51349633,0.00038738,2]
[400348971,1767409840503,-578.10034199,0.00038738,2]
[400348972,1767409840512,-616.00617618,0.00038738,2]
[400348973,1767409840741,-304.68719061,0.00038738,2]
[400348974,1767409840751,-303.88896894,0.00038738,2]
[400348975,1767409840762,-300.0,0.00038738,2]
[400348976,1767409840772,-303.51349633,0.00038738,2]
[400348977,1767409840783,-578.10034199,0.00038738,2]
[400348978,1767409840792,-616.00617618,0.00038738,2]
[400348979,1767409840802,-304.68719061,0.00038738,2]
[400348980,1767409840812,-365.0,0.000388,2]
[400348981,1767409840821,-365.0,0.000388,2]
[400348982,1767409840831,-365.0,0.000388,2]
[400348983,1767409840840,-365.0,0.000388,2]
[400348984,1767409840850,-335.0,0.000388,2]
[400348985,1767409840859,-365.0,0.000388,2]
[400348986,1767409840868,-365.0,0.000388,2]
[400348987,1767409840878,-365.0,0.000388,2]
[400348988,1767409840887,-365.0,0.000388,2]
[400348989,1767409840896,-365.0,0.000388,2]
[400348990,1767409840906,-365.0,0.000388,2]
[400348991,1767409840917,-365.0,0.000388,2]
[400348992,1767409840927,-365.0,0.000388,2]
[400348993,1767409840937,-365.0,0.000388,2]
[400348994,1767409840946,-365.0,0.000388,2]
[400348995,1767409840955,-365.0,0.000388,2]
[400348996,1767409840966,-365.0,0.000388,2]
[400348997,1767409840975,-365.0,0.000388,2]
[400348998,1767409840985,-365.0,0.000388,2]
[400348999,1767409840997,-365.0,0.000388,2]
[400349000,1767409841007,-506.8,0.000388,2]
[400349001,1767409841017,-5792.81566624,0.00038824,2]
[400349002,1767409841027,-431.027,0.00038888,30]
[400349003,1767409841038,-150.8440065,0.000389,30]
[400349004,1767409841048,-508.0,0.0003899,12]
[400349005,1767409841058,-165.65740944,0.00039,120]
[400349006,1767409841067,-1003.19435973,0.00039,2]
[400349007,1767409841077,-176.35313701,0.00039072,28]
[400349008,1767409841086,-1812.10420537,0.00039111,120]
[400349009,1767409841096,-150.0,0.00039291,2]
[400349010,1767409841106,-615.062,0.00039291,2]
[400349011,1767409841115,-224.0,0.000396,90]
[400349012,1767409841124,-1178.85935984,0.00039633,4]
[400349013,1767409841134,-269.67,0.00039654,2]
[400349014,1767409841143,-3126.6704773,0.00039987,2]
[400349015,1767409841153,-1178.85935984,0.0003999,4]
[400349016,1767409841164,-151.0,0.0004,120]
[400349017,1767409841175,-152.0,0.0004,120]
[400349018,1767409841184,-5000.14725836,0.0004,10]
[400349019,1767409841194,-5000.96325814,0.0004,11]
[400349020,1767409841204,-5000.12365478,0.0004,12]
[400349021,1767409841214,-802.66394782,0.0004,3]
[400349022,1767409841223,-150.27027551,0.0004,120]
[400349023,1767409841233,-4247.83577036,0.0004,120]
[400349024,1767409841243,-160.73516719,0.0004,2]
[400349025,1767409841252,-158.49,0.0004,14]
[400349026,1767409841262,-291.08,0.0004,120]
[400349027,1767409841272,-575.85,0.0004,120]
[400349028,1767409841282,-660.63,0.00040164,2]
[400349029,1767409841292,-482.1,0.00040164,2]
[400349030,1767409841302,-660.63,0.00040164,2]